bitfinex/quotes_ETHUSD_20240731
["timestamp","ask_amount","ask_price","bid_price","bid_amount"]
[1722393728236,3.03132,3298.9,3298.3,0.61278254]
[1722393728436,0.13680484,3298.5,3298.2,5.51855]
[1722393728631,3.03132,3298.9,3298.2,5.51855]
[1722393729257,0.13680484,3298.8,3298.2,2.4866]
[1722393730963,0.13680484,3298.8,3298.2,5.51854]
[1722393731269,3.42629257,3298.8,3298.2,5.51854]
[1722393732124,3.42627761,3298.8,3298.2,5.51854]
[1722393732538,3.42627761,3298.8,3298.2,2.4866]
[1722393732725,6.45769761,3298.8,3298.2,2.4866]
[1722393732950,4.22922484,3298.8,3298.2,2.4866]
[1722393733138,2.22848454,3298.7,3298.2,2.4866]
[1722393733533,0.13680484,3298.6,3298.2,2.4866]
[1722393733733,2.22848454,3298.7,3298.2,3.09939154]
[1722393733953,0.13680484,3298.6,3298.2,3.09939154]
[1722393734158,2.22853101,3298.7,3298.2,2.4866]
[1722393734361,0.13680484,3298.6,3298.2,2.4866]
[1722393736349,2.36533585,3298.6,3298.2,2.4866]
[1722393736652,2.36533585,3298.6,3298.2,5.51852]
[1722393736828,2.36533585,3298.6,3298.2,2.4866]
[1722393737029,2.36533585,3298.6,3298.2,3.09938554]
[1722393737448,2.36676959,3298.6,3298.2,3.09938554]
[1722393737688,2.22996475,3298.5,3298.2,3.09938554]
[1722393737886,2.36676959,3298.6,3298.2,3.09938554]
[1722393738092,2.22996475,3298.6,3298.2,3.09938554]
[1722393738392,0.13680484,3298.5,3298.2,3.09938554]
[1722393741067,2.36705602,3298.5,3298.2,3.09938554]
[1722393741262,0.13680484,3298.5,3298.2,3.09938554]
[1722393742067,2.36709404,3298.5,3298.2,3.09938554]
[1722393742281,2.36709404,3298.5,3298.2,2.4866]
[1722393742803,2.36709404,3298.5,3297.9,8.33997]
[1722393743161,2.36729299,3298.5,3297.9,8.33997]
[1722393743463,2.23048815,3298.4,3297.9,8.33997]
[1722393743706,2.36729299,3298.5,3297.9,8.33997]
[1722393743876,0.13693271,3298.3,3297.9,8.33997]
[1722393744076,2.23052137,3298.5,3298.0,1.574997]
[1722393744312,0.13693271,3298.2,3298.0,1.574997]
[1722393744602,0.13693271,3298.1,3298.0,1.574997]
[1722393745122,2.23052137,3298.4,3298.0,1.574997]
[1722393745326,0.13693271,3298.1,3298.0,1.574997]
[1722393745819,2.23052137,3298.4,3298.0,1.574997]
[1722393746025,0.13693271,3298.1,3298.0,1.574997]
[1722393746230,2.23052137,3298.4,3298.0,1.574997]
[1722393746398,0.13693271,3298.1,3298.0,1.574997]
[1722393746598,2.23052137,3298.5,3298.0,1.574997]
[1722393746812,0.13693271,3298.1,3298.0,1.574997]
[1722393747015,2.23052137,3298.4,3298.0,1.574997]
[1722393747184,0.13693271,3298.1,3298.0,1.574997]
[1722393747380,2.23052137,3298.5,3298.0,1.574997]
[1722393747381,2.23043601,3298.5,3298.0,1.574997]
[1722393747717,0.13693271,3298.4,3298.0,1.574997]
[1722393748469,0.13693271,3298.4,3297.9,5.3078]
[1722393748728,3.0319,3298.3,3297.7,3.0]
[1722393748895,5.26236517,3298.3,3297.7,3.0]
[1722393749312,0.13692737,3298.2,3297.7,3.0]
[1722393749514,0.13692737,3298.2,3297.7,4.41516942]
[1722393750517,0.13692737,3298.2,3297.7,7.44757942]
[1722393751516,2.23047726,3298.3,3297.8,0.06063906]
[1722393751711,0.13691939,3298.1,3297.7,7.44757942]
[1722393751910,2.23047726,3298.3,3297.7,7.44757942]
[1722393752114,0.13691939,3298.0,3297.8,0.4572794]
[1722393752285,2.23047726,3298.3,3297.8,3.55023847]
[1722393752787,0.13689808,3298.2,3298.0,2.2527]
[1722393752990,0.13689808,3298.2,3298.0,6.22574488]
[1722393753214,2.23038447,3298.4,3298.0,6.22574488]
[1722393753442,0.13687145,3298.1,3298.0,6.22574488]
[1722393753738,2.23038447,3298.4,3298.0,6.22574488]
[1722393753913,0.13687145,3298.1,3298.0,6.22574488]
[1722393754102,2.23040038,3298.4,3298.0,5.34546603]
[1722393754503,0.13687145,3298.3,3298.0,5.34546603]
[1722393756151,0.13687145,3298.3,3298.0,5.28483]
[1722393757263,0.13687145,3298.3,3298.0,6.46226994]
[1722393757445,0.13687145,3298.3,3298.1,0.06063463]
[1722393757646,2.23072894,3298.4,3298.1,0.06063463]
[1722393757857,0.13687145,3298.2,3298.1,0.06063463]
[1722393758055,2.23072894,3298.4,3298.1,0.06063463]
[1722393758239,0.13687145,3298.2,3298.1,0.06063463]
[1722393758420,2.23072894,3298.4,3298.1,1.01291909]
[1722393758620,0.13687145,3298.2,3298.1,1.01291909]
[1722393759265,2.23072894,3298.4,3298.1,1.01291909]
[1722393759444,0.13687145,3298.2,3298.1,1.01291909]
[1722393759650,2.23072894,3298.4,3298.1,1.01291909]
[1722393759857,0.13687145,3298.2,3298.1,1.01291909]
[1722393760334,2.23072894,3298.4,3298.1,1.01291909]
[1722393760545,0.13687145,3298.3,3298.1,1.01291909]
[1722393760921,2.23075938,3298.4,3298.1,1.01291909]
[1722393761121,0.13687145,3298.3,3298.1,0.06063463]
[1722393761371,2.23077245,3298.6,3298.1,0.06063463]
[1722393761778,0.13687145,3298.5,3298.2,2.3319]
[1722393762076,2.23057087,3298.9,3298.5,3.03165]
[1722393762280,2.23057087,3298.9,3298.8,3.0314]
[1722393762486,2.23057087,3299.2,3298.9,3.03125]
[1722393762638,7.29,3299.9,3299.4,3.03085]
[1722393762639,2.23057087,3299.6,3299.4,3.03085]
[1722393762840,2.23057087,3299.9,3299.6,3.03067]
[1722393763040,1.061,3300.4,3299.6,3.03067]
[1722393763283,2.2270647,3300.2,3299.9,1.061]
[1722393763439,2.2270647,3300.5,3299.9,3.09090826]
[1722393763637,4.09095,3300.4,3299.9,0.06059826]
[1722393763872,6.3180147,3300.4,3299.7,5.3688]
[1722393764075,2.22700145,3300.3,3299.7,5.3688]
[1722393764283,3.03003,3300.3,3299.7,6.38667327]
[1722393764477,4.09094,3300.4,3299.7,6.38667327]
[1722393764680,3.03012,3300.2,3299.7,3.0]
[1722393764880,2.22700145,3300.3,3299.4,6.03084]
[1722393765086,4.09095,3300.4,3299.5,3.03075]
[1722393765291,3.02995,3300.4,3299.6,3.0]
[1722393765582,5.25695145,3300.4,3299.6,3.0]
[1722393765786,3.02995,3300.4,3299.7,0.603075]
[1722393765987,3.03009,3300.3,3299.5,3.0]
[1722393766143,3.03015,3300.2,3299.5,3.0]
[1722393766750,3.02991,3300.5,3299.7,3.0305]
[1722393766981,3.02991,3300.5,3299.8,3.40018202]
[1722393767320,3.02966,3300.7,3299.8,3.33958021]
[1722393767490,3.57982,3300.6,3299.8,3.33958021]
[1722393767995,3.02986,3300.5,3299.8,3.33958021]
[1722393768161,3.02986,3300.5,3299.8,0.30911021]
[1722393768363,5.25648145,3300.9,3299.9,2.54290178]
[1722393768580,3.02966,3300.7,3300.0,3.03024]
[1722393769079,3.02966,3300.7,3300.1,0.0605952]
[1722393769245,3.02948,3300.9,3300.1,0.0605952]
[1722393769441,3.02957,3300.8,3300.1,3.0605952]
[1722393769744,3.02957,3300.8,3300.2,0.60908352]
[1722393770463,6.05866,3301.1,3300.2,0.60908352]
[1722393770793,3.02929,3301.1,3300.3,0.06059133]
[1722393770949,3.02914,3301.3,3300.4,3.09050818]
[1722393771147,3.02893,3301.5,3300.7,3.02965]
[1722393771377,3.02893,3301.5,3300.8,0.06058395]
[1722393771799,2.4924,3301.9,3300.8,0.06058395]
[1722393771946,3.02898,3301.5,3300.8,0.06058395]
[1722393772152,3.02898,3301.5,3300.7,6.02959]
[1722393772573,0.13333454,3301.4,3300.7,6.02959]
[1722393772841,0.13333454,3301.4,3300.7,3.0]
[1722393773091,0.13333454,3301.4,3300.8,0.06057928]
[1722393773241,0.13333454,3301.4,3300.9,0.30901693]
[1722393773452,0.13333454,3301.4,3301.0,0.06057927]
[1722393773677,3.16242454,3301.4,3300.9,0.30901693]
[1722393773889,3.16242454,3301.4,3300.6,6.02974]
[1722393774192,0.13333454,3301.4,3300.8,3.02954]
[1722393774360,3.02888,3301.6,3300.8,3.02954]
[1722393774569,3.16228454,3301.5,3300.6,6.02968]
[1722393774890,3.16228454,3301.5,3300.7,0.829508]
[1722393775483,3.0292,3301.2,3300.7,0.829508]
[1722393776048,0.13333454,3301.1,3300.7,0.829508]
[1722393777980,3.02907,3301.4,3300.7,0.829508]
[1722393778506,3.02926,3301.2,3300.7,0.829508]
[1722393778713,3.02926,3301.2,3300.6,3.0]
[1722393778714,3.02955,3300.9,3300.6,3.0]
[1722393778860,3.02934,3301.1,3300.4,0.06058934]
[1722393779064,0.13333454,3300.8,3300.4,3.02991]
[1722393779263,3.02923,3301.2,3300.5,3.0]
[1722393779498,0.13333454,3300.7,3300.6,0.602991]
[1722393779762,0.13333454,3300.7,3300.3,3.66391435]
[1722393780079,3.02943,3301.0,3300.3,6.69392435]
[1722393780280,0.13350474,3300.6,3300.3,6.69392435]
[1722393780583,0.13350474,3300.5,3300.4,0.66939244]
[1722393780795,3.02957,3300.8,3300.4,3.66939244]
[1722393780972,0.13350474,3300.7,3300.4,0.66939244]
[1722393781174,3.02957,3300.8,3300.2,3.0]
[1722393781360,3.02957,3300.8,3300.1,5.4941]
[1722393781571,3.02941,3301.0,3300.2,3.03009]
[1722393781572,3.02948,3300.9,3300.2,3.03009]
[1722393781897,3.16311474,3300.8,3300.3,3.852419]
[1722393782106,3.16311474,3300.8,3300.3,0.852419]
[1722393782495,3.02961,3300.8,3300.3,0.852419]
[1722393782813,0.13350474,3300.7,3300.3,0.852419]
[1722393783104,3.02961,3300.8,3300.3,0.852419]
[1722393783258,0.13350474,3300.6,3300.4,0.3852419]
[1722393783463,3.02961,3300.8,3300.4,0.3852419]
[1722393783987,0.13350474,3300.7,3300.4,0.44583294]
[1722393784162,3.02961,3300.8,3300.4,0.44583294]
[1722393784362,0.13350474,3300.7,3300.4,0.44583294]
[1722393784577,3.02961,3300.8,3300.4,0.44583294]
[1722393785009,0.13350474,3300.7,3300.4,0.3852419]
[1722393785177,3.02914,3301.3,3300.5,2.4322]
[1722393785373,0.13350474,3301.2,3300.6,0.58473619]
[1722393787214,0.13350474,3301.2,3300.7,3.09023222]
[1722393787449,3.02895,3301.5,3300.7,3.02965]
[1722393787874,3.16256678,3301.4,3300.6,3.58473619]
[1722393788207,3.16256678,3301.4,3300.7,0.90466962]
[1722393788577,3.16256678,3301.4,3300.7,3.93430962]
[1722393790517,0.13349678,3301.4,3300.7,0.90466962]
[1722393790732,0.13349678,3301.4,3300.8,3.02956]
[1722393790908,3.02899,3301.5,3300.8,3.02956]
[1722393791095,0.13381326,3301.3,3300.9,0.45400501]
[1722393791294,3.02899,3301.5,3300.9,0.45400501]
[1722393791511,0.13381326,3301.2,3300.9,0.45400501]
[1722393791829,0.13381326,3301.1,3300.9,0.45400501]
[1722393791994,3.02899,3301.5,3300.9,0.45400501]
[1722393792203,0.13381326,3301.4,3300.9,0.39342296]
[1722393792574,0.13381326,3301.4,3301.0,2.3836]
[1722393793223,0.13381326,3301.4,3301.0,2.9642583]
[1722393793577,3.02917,3301.3,3300.9,0.39342296]
[1722393793807,3.16306592,3301.2,3300.7,3.22456962]
[1722393794584,3.02965,3300.8,3300.4,2.3649]
[1722393794823,3.02965,3300.8,3300.4,3.0]
[1722393794824,0.13196925,3300.7,3300.4,3.0]
[1722393795187,3.02968,3300.7,3300.4,3.0]
[1722393795402,0.13196925,3300.6,3300.4,3.0]
[1722393795617,3.02962,3300.8,3300.1,2.3649]
[1722393795818,3.02962,3300.8,3300.2,0.539518]
[1722393796021,0.13196925,3300.7,3300.2,3.539518]
[1722393796187,3.02962,3300.8,3300.2,3.539518]
[1722393796536,3.02943,3301.0,3300.2,3.539518]
[1722393796739,3.02943,3301.0,3300.3,0.65103501]
[1722393796887,3.16148925,3300.9,3300.3,0.5904418]
[1722393797082,0.13196925,3300.9,3300.3,3.6204118]
[1722393797283,0.13196925,3300.9,3300.4,3.09047318]
[1722393797533,3.02934,3301.1,3300.5,0.3680915]
[1722393797733,0.13195595,3300.8,3300.5,0.3680915]
[1722393797946,3.02934,3301.1,3300.5,0.3680915]
[1722393798147,0.13195595,3300.7,3300.5,0.3680915]
[1722393798317,3.02874,3301.7,3300.5,0.3680915]
[1722393798318,3.02903,3301.4,3300.6,3.02969]
[1722393798520,3.02903,3301.4,3300.7,2.2805]
[1722393798845,3.02897,3301.5,3300.8,0.06058239]
[1722393799053,3.0289,3301.6,3300.8,3.09011239]
[1722393800525,3.02879,3301.7,3300.8,3.09007239]
[1722393800849,3.02879,3301.7,3300.8,4.23010063]
[1722393801347,3.02861,3301.9,3300.9,3.02942]
[1722393801348,3.02886,3301.6,3300.9,3.02942]
[1722393802903,0.13194534,3301.5,3300.9,3.02942]
[1722393803463,6.05776,3301.6,3300.9,3.02942]
[1722393803636,2.3323,3302.0,3300.8,1.14002824]
[1722393803949,3.02892,3301.6,3300.8,1.14002824]
[1722393804248,3.02892,3301.6,3300.7,5.2805]
[1722393804456,3.02903,3301.4,3300.7,5.3101]
[1722393804805,3.81179,3301.9,3300.7,2.2805]
[1722393805050,3.02888,3301.6,3300.7,2.2805]
[1722393805230,3.02888,3301.6,3300.7,3.14833515]
[1722393805427,3.02888,3301.6,3300.7,6.17793515]
[1722393805650,3.02906,3301.4,3300.7,6.17793515]
[1722393806262,0.1320384,3301.3,3300.7,6.17793515]
[1722393807350,0.1320384,3301.3,3300.8,3.02951]
[1722393807551,0.1320384,3301.3,3300.9,0.92074251]
[1722393807754,3.02893,3301.5,3300.9,0.92074251]
[1722393808063,3.02904,3301.4,3300.9,0.92074251]
[1722393808369,3.02916,3301.3,3300.7,2.2805]
[1722393808715,0.13201979,3301.2,3300.7,2.2805]
[1722393808925,0.13201979,3301.2,3300.6,3.0]
[1722393808926,1.25801979,3301.2,3300.6,3.0]
[1722393809125,4.15521,3301.2,3300.4,3.0]
[1722393809366,4.15521,3301.2,3300.4,7.42281]
[1722393809367,0.13201979,3301.1,3300.4,7.42281]
[1722393809518,3.16130979,3301.1,3300.4,7.42281]
[1722393810966,0.13201979,3301.1,3300.5,3.02982]
[1722393811171,0.13201979,3301.1,3300.6,3.0]
[1722393811321,6.05832,3301.3,3300.6,4.154867]
[1722393811515,2.22388049,3301.7,3300.8,3.02955]
[1722393811516,0.13201979,3301.0,3300.8,3.02955]
[1722393811861,3.02885,3301.6,3300.9,4.15546]
[1722393812363,3.02885,3301.6,3300.9,3.02946]
[1722393812591,2.22592268,3301.5,3300.9,3.02946]
[1722393812892,2.22593326,3301.5,3300.9,3.09004196]
[1722393813660,2.22593326,3301.5,3300.9,0.06058196]
[1722393813661,5.25486326,3301.5,3300.9,0.06058196]
[1722393814200,2.22593326,3301.4,3300.8,3.02955]
[1722393815200,2.22593326,3301.3,3300.7,2.3857]
[1722393815745,2.22737,3301.3,3300.7,5.41535]
[1722393815989,2.22737,3301.3,3300.7,2.3857]
[1722393816331,2.22737,3301.2,3300.7,2.3857]
[1722393816595,2.22737,3301.3,3300.7,6.4849797]
[1722393816796,2.22737,3301.2,3300.8,3.02956]
[1722393817601,0.13198521,3301.1,3300.8,6.05906]
[1722393817903,2.22737,3301.3,3300.8,3.56983328]
[1722393818413,0.13198521,3301.2,3300.8,3.56983328]
[1722393818700,2.22737,3301.3,3300.8,3.56983328]
[1722393818910,0.13198521,3301.1,3300.8,0.54033328]
[1722393819092,2.22779545,3301.3,3300.8,0.54033328]
[1722393819310,0.13198521,3301.0,3300.8,0.54033328]
[1722393819465,2.22779545,3301.2,3300.8,0.54033328]
[1722393819659,0.13198521,3300.9,3300.7,3.4553297]
[1722393819864,2.22779545,3301.2,3300.7,3.4553297]
[1722393820083,0.13198521,3300.8,3300.7,3.4553297]
[1722393820380,0.13198521,3300.8,3300.7,6.4553297]
[1722393820596,2.22779545,3301.2,3300.7,3.0]
[1722393820597,2.22779545,3301.1,3300.7,3.0]
[1722393820761,2.22779545,3301.1,3300.4,2.3947]
[1722393820762,0.13198521,3301.0,3300.4,5.3947]
[1722393820961,0.13198521,3301.0,3300.4,8.42456]
[1722393821161,0.13198521,3301.0,3300.5,1.145452]
[1722393821396,0.13198521,3301.0,3300.5,4.145452]
[1722393821608,2.35978066,3301.0,3300.5,4.145452]
[1722393821987,0.13198521,3301.0,3300.5,4.145452]
[1722393822616,7.18453,3301.2,3300.5,4.145452]
[1722393822908,0.13198521,3301.1,3300.5,3.0]
[1722393823105,0.13198521,3301.1,3300.4,2.3947]
[1722393823302,3.02939,3301.0,3300.4,2.3947]
[1722393823711,0.13198521,3300.9,3300.4,2.3947]
[1722393823942,0.13198521,3300.9,3300.4,4.39376]
[1722393824155,3.02929,3301.1,3300.5,3.0]
[1722393824443,3.02938,3301.0,3300.5,3.0]
[1722393824614,0.13198521,3300.9,3300.5,3.0]
[1722393825000,3.02986,3300.5,3300.2,7.41]
[1722393825196,1.126,3300.6,3300.1,2.3797]
[1722393825439,0.13187088,3300.5,3300.1,2.3797]
[1722393826140,0.13187088,3300.4,3300.1,2.3797]
[1722393826545,3.02977,3300.6,3300.1,2.3797]
[1722393827701,3.02999,3300.4,3299.8,37.4431]
[1722393828045,3.02999,3300.4,3299.8,5.49211288]
[1722393828215,0.13174323,3300.3,3299.9,3.0]
[1722393828416,3.02984,3300.5,3299.8,5.4431]
[1722393828943,3.02984,3300.5,3299.8,8.47358]
[1722393831789,3.02984,3300.5,3299.8,43.47358]
[1722393831790,0.13174323,3300.4,3299.8,43.47358]
[1722393832085,3.02984,3300.5,3299.8,43.47358]
[1722393832255,3.02993,3300.4,3299.8,40.4431]
[1722393832591,3.03003,3300.3,3299.8,5.4431]
[1722393832775,3.03003,3300.3,3299.7,7.41]
[1722393832975,0.13174323,3300.2,3299.7,7.41]
[1722393833283,3.03003,3300.3,3299.7,7.41]
[1722393833284,4.15593,3300.4,3299.7,10.44057]
[1722393833488,4.15593,3300.4,3299.7,11.17417072]
[1722393833647,0.13155439,3300.3,3299.7,11.17417072]
[1722393833847,4.15593,3300.4,3299.7,11.17417072]
[1722393835381,1.126,3300.4,3299.8,4.58878124]
[1722393837089,0.13155439,3300.3,3299.9,3.03034]
[1722393837447,1.126,3300.4,3299.9,3.03034]
[1722393838394,1.126,3300.4,3299.8,1.55831124]
[1722393838689,0.13155439,3300.3,3299.8,1.55831124]
[1722393839384,4.15594,3300.4,3299.8,1.55831124]
[1722393839581,1.126,3300.4,3299.8,4.58879124]
[1722393839742,1.126,3300.4,3299.9,1.5762902]
[1722393839946,0.13155439,3300.3,3299.9,1.5762902]
[1722393840189,0.13155439,3300.3,3299.9,4.6066702]
[1722393840485,1.126,3300.4,3299.9,4.6066702]
[1722393840992,1.126,3300.4,3299.9,4.6066302]
[1722393841850,1.126,3300.4,3299.9,1.5762902]
[1722393843592,0.13152776,3300.3,3299.9,1.5762902]
[1722393843890,1.126,3300.4,3299.9,1.5762902]
[1722393844603,3.02962,3300.8,3300.0,2.94157302]
[1722393844787,4.15566,3300.7,3300.1,0.06059755]
[1722393844961,1.126,3300.7,3300.1,0.0605976]
[1722393845162,1.126,3301.1,3300.5,2.4809]
[1722393845605,0.13145595,3301.0,3300.5,2.4809]
[1722393846270,0.13145595,3301.0,3300.5,5.51074]
[1722393846685,1.126,3300.9,3300.5,2.4809]
[1722393846885,1.126,3300.9,3300.4,0.06059149]
[1722393847086,0.13145595,3300.8,3300.4,0.06059149]
[1722393847522,0.13145595,3300.8,3300.4,3.09052149]
[1722393847687,0.13145595,3300.8,3300.5,0.61205315]
[1722393848608,1.126,3300.7,3300.2,2.3793]
[1722393848812,1.126,3300.7,3300.1,10.44015]
[1722393848983,2.22821023,3301.2,3300.6,5.40595]
[1722393849186,2.22821023,3301.5,3301.1,2.3762]
[1722393849536,2.22821023,3301.6,3301.1,5.40547]
[1722393849681,2.22821023,3301.7,3301.1,5.40547]
[1722393849882,2.86649625,3301.6,3301.1,5.40547]
[1722393850120,0.63828602,3301.6,3301.2,3.02919]
[1722393850684,2.22821023,3301.8,3301.4,3.02901]
[1722393851328,3.02833,3302.2,3301.4,3.02901]
[1722393851530,2.22673405,3301.9,3301.5,3.08949711]
[1722393851731,2.22673405,3302.0,3301.7,3.02873]
[1722393852032,4.58253405,3302.3,3301.7,3.02867]
[1722393852185,0.49861296,3302.2,3301.7,3.02867]
[1722393852636,4.58253405,3302.3,3301.7,3.02866]
[1722393853037,4.58253405,3302.3,3301.6,2.43676898]
[1722393853539,3.02837,3302.1,3301.6,2.3762]
[1722393853687,3.02837,3302.1,3301.3,5.40525]
[1722393854035,0.52551041,3302.0,3301.3,5.40525]
[1722393854240,3.02837,3302.1,3301.3,5.40525]
[1722393854533,3.02846,3302.1,3301.3,2.3762]
[1722393854691,3.02846,3302.1,3301.3,8.40523]
[1722393854895,3.02846,3302.1,3301.3,8.40522]
[1722393855119,4.09201162,3302.1,3301.4,3.02897]
[1722393856100,4.09201162,3302.1,3301.3,40.3762]
[1722393856101,1.06355162,3302.1,3301.3,40.3762]
[1722393856336,4.09201162,3302.1,3301.3,43.40524]
[1722393857130,3.02862,3301.9,3301.3,5.3762]
[1722393857334,3.02862,3301.9,3301.2,3.0]
[1722393857335,3.0288,3301.7,3301.2,3.0]
[1722393857648,3.02862,3301.9,3301.0,5.2662]
[1722393857792,3.02862,3301.9,3301.2,3.02919]
[1722393858198,3.02862,3301.9,3301.1,3.02927]
[1722393858409,3.02862,3301.9,3301.2,3.0]
[1722393858948,0.40920116,3302.0,3301.2,3.0]
[1722393858949,3.02865,3301.8,3301.2,3.0]
[1722393859090,0.40920116,3302.0,3301.2,3.0]
[1722393859292,3.02861,3301.9,3301.2,3.0]
[1722393859538,3.02866,3301.8,3301.2,3.0]
[1722393859838,3.02866,3301.8,3301.1,3.0]
[1722393860696,3.02874,3301.7,3301.1,3.0]
[1722393860894,3.02874,3301.7,3301.0,2.2662]
[1722393860895,3.0286,3301.9,3301.0,2.2662]
[1722393861124,3.59458604,3301.9,3301.0,2.2662]
[1722393861510,3.02884,3301.6,3301.0,2.2662]
[1722393861716,3.02884,3301.6,3301.0,5.2662]
[1722393861917,3.02884,3301.6,3301.0,2.2662]
[1722393862639,0.1190328,3301.5,3301.0,2.2662]
[1722393863944,0.1190328,3301.5,3301.3,5.47006]
[1722393864311,3.02854,3302.0,3301.3,5.47006]
[1722393864514,0.11894243,3301.4,3301.3,5.47006]
[1722393864709,3.02854,3302.0,3301.3,5.47006]
[1722393864942,0.11894243,3301.4,3301.3,5.47006]
[1722393865103,3.02854,3302.0,3301.3,6.32605061]
[1722393865300,0.11897433,3301.9,3301.3,5.47006]
[1722393867332,0.11897433,3301.9,3301.4,3.02895]
[1722393867846,3.02837,3302.1,3301.4,3.02895]
[1722393868007,0.11893711,3301.8,3301.4,3.02895]
[1722393868208,0.55,3302.0,3301.4,3.02895]
[1722393868435,0.11893711,3301.7,3301.5,2.2591]
[1722393868636,2.22268436,3302.9,3302.0,3.02846]
[1722393868853,2.22215364,3303.0,3302.1,2.31966117]
[1722393869082,2.22215364,3303.3,3302.6,6.05575]
[1722393869281,5.24934364,3303.4,3302.7,2.2591]
[1722393869501,0.52493436,3303.3,3302.7,2.2591]
[1722393869806,3.55225436,3303.3,3302.7,2.2591]
[1722393872169,3.0274,3303.2,3302.7,2.2591]
[1722393872487,3.55225436,3303.3,3302.7,2.2591]
[1722393872488,3.02746,3303.1,3302.7,2.2591]
[1722393874090,3.02738,3303.2,3302.7,2.2591]
[1722393877605,0.10694031,3303.1,3302.7,2.2591]
[1722393882302,0.10694031,3303.1,3303.0,5.40955]
[1722393882506,3.0268,3303.9,3303.0,5.40955]
[1722393882507,3.0268,3303.9,3303.2,3.02733]
[1722393882714,0.10702001,3303.8,3303.3,3.02724]
[1722393883027,6.0534,3304.0,3303.3,3.02722]
[1722393883330,3.02677,3303.9,3303.2,3.02735]
[1722393883621,0.10606112,3303.9,3303.3,3.02727]
[1722393884162,3.0265,3304.2,3303.3,3.02727]
[1722393884163,0.10606112,3303.8,3303.3,3.02727]
[1722393884415,6.05339,3304.0,3303.3,3.02727]
[1722393884586,0.10606112,3303.7,3303.3,3.02727]
[1722393884792,0.55,3303.9,3303.3,3.02727]
[1722393884972,3.57673,3303.9,3303.3,3.02727]
[1722393885174,0.10606112,3303.8,3303.3,3.02727]
[1722393885410,0.10606112,3303.8,3303.1,5.40937]
[1722393885568,0.10606112,3303.8,3303.1,5.950307]
[1722393885769,0.10606112,3303.8,3303.1,2.922937]
[1722393885770,3.02691,3303.7,3303.1,2.922937]
[1722393885972,3.02691,3303.7,3303.1,2.98347962]
[1722393886413,0.10606112,3303.6,3303.1,2.98347962]
[1722393886630,3.02691,3303.7,3303.1,2.98347962]
[1722393886928,3.02691,3303.7,3303.1,2.382]
[1722393886929,0.10459779,3303.6,3303.1,2.382]
[1722393888422,0.10459779,3303.6,3303.1,5.4094]
[1722393888578,0.10459779,3303.6,3303.2,3.02731]
[1722393888772,3.57678,3303.9,3303.2,3.87704348]
[1722393889319,0.10476245,3303.8,3303.2,3.87704348]
[1722393890028,3.13157245,3303.8,3303.2,0.84973348]
[1722393890694,3.13157245,3303.8,3303.1,5.46999262]
[1722393893255,3.13157245,3303.8,3303.1,2.44254262]
[1722393893653,0.10476245,3303.8,3303.1,5.46995262]
[1722393894230,0.10476245,3303.8,3303.1,5.46993262]
[1722393894449,0.10476245,3303.8,3303.1,5.46992262]
[1722393894612,0.10476245,3303.8,3303.2,3.02736]
[1722393895559,0.10476245,3303.8,3303.1,6.874552]
[1722393896121,0.10476245,3303.8,3303.2,3.02731]
[1722393896424,0.10476245,3303.8,3303.3,3.02726]
[1722393896642,0.10476245,3303.8,3303.5,5.48614]
[1722393896843,0.10476245,3303.8,3303.7,7.1778]
[1722393897045,2.3893,3304.8,3303.9,6.05333]
[1722393897046,3.02612,3304.6,3303.9,6.05333]
[1722393897246,3.02612,3304.6,3304.0,3.02663]
[1722393897472,0.09743008,3304.5,3304.0,3.08715865]
[1722393897650,6.53923,3304.8,3304.0,3.08708865]
[1722393897651,3.02593,3304.8,3304.0,3.08708865]
[1722393897968,3.02593,3304.8,3304.2,2.2914]
[1722393898174,0.09769288,3304.7,3304.2,2.2914]
[1722393898932,3.12369288,3304.7,3304.2,2.2914]
[1722393899247,3.02608,3304.6,3304.2,2.2914]
[1722393899674,3.12390675,3304.5,3304.2,2.2914]
[1722393900348,0.09771675,3304.5,3304.2,2.2914]
[1722393900745,3.02609,3304.6,3304.2,2.2914]
[1722393900951,0.09771675,3304.4,3304.2,2.2914]
[1722393901179,3.02609,3304.6,3304.2,2.2914]
[1722393901452,0.09771675,3304.3,3303.8,2.4665]
[1722393901653,3.02627,3304.4,3303.8,2.4665]
[1722393901902,0.09770085,3304.3,3303.9,0.06052777]
[1722393902112,0.09770085,3304.3,3304.0,3.02659]
[1722393902291,3.02602,3304.7,3304.1,0.36923579]
[1722393902466,3.02602,3304.7,3304.1,3.08706401]
[1722393902799,0.09770085,3304.6,3304.1,3.08706401]
[1722393903110,0.09770085,3304.6,3304.1,0.06052401]
[1722393903260,3.02656,3304.1,3303.8,2.4665]
[1722393903451,0.09770085,3304.6,3303.8,2.4665]
[1722393903452,3.02648,3304.2,3303.8,2.4665]
[1722393904000,0.09770085,3304.1,3303.8,2.4665]
[1722393904359,3.12429085,3304.1,3303.8,2.4665]
[1722393904561,0.41012994,3304.1,3303.6,7.41]
[1722393904762,3.02682,3303.8,3303.6,7.41]
[1722393904986,3.02682,3303.8,3303.5,2.3749]
[1722393905298,0.09798223,3303.7,3303.5,2.3749]
[1722393905504,3.02687,3303.8,3303.5,2.3749]
[1722393905806,0.09798223,3303.7,3303.2,5.3749]
[1722393905954,0.09798223,3303.7,3303.2,7.2929992]
[1722393906155,3.02687,3303.8,3303.2,7.2929992]
[1722393906703,3.12490223,3303.7,3303.2,7.2929992]
[1722393907084,0.09798223,3303.7,3303.2,2.3749]
[1722393907291,2.3294,3304.0,3303.2,2.43544084]
[1722393907292,3.02667,3304.0,3303.2,2.43544084]
[1722393907599,3.02686,3303.8,3303.2,2.3749]
[1722393907920,3.02692,3303.7,3303.2,2.3749]
[1722393908272,0.09765841,3303.6,3303.2,2.3749]
[1722393908609,3.02714,3303.5,3303.2,2.3749]
[1722393908957,0.09765841,3303.4,3303.1,7.41]
[1722393909412,0.09765841,3303.4,3302.9,2.3272]
[1722393909558,0.09765841,3303.4,3302.9,4.101697]
[1722393909758,0.09765841,3303.4,3302.9,2.3272]
[1722393910228,3.12483841,3303.4,3302.9,2.3272]
[1722393910361,0.09765841,3303.4,3302.9,2.3272]